[Event "*** Titled Tuesday Blitz"]
[Site "Chess.com"]
[Date "2020.12.29"]
[Round "8"]
[White "lavr92"]
[Black "Piotrek1979"]
[Result "0-1"]
[WhiteElo "2606"]
[BlackElo "2431"]
[TimeControl "180+1"]
[EndTime "11:29:02 PST"]
[Termination "Piotrek1979 won on time"]

1. d4 {[%clk 0:03:00.9]} 1... Nf6 {[%clk 0:02:58.2]} 2. c4 {[%clk 0:03:01.1]}
2... g6 {[%clk 0:02:57.4]} 3. Nc3 {[%clk 0:03:01.4]} 3... Bg7 {[%clk 0:02:56.8]}
4. e4 {[%clk 0:03:01.5]} 4... d6 {[%clk 0:02:57.4]} 5. Nf3 {[%clk 0:03:01.7]}
5... O-O {[%clk 0:02:57.9]} 6. Be2 {[%clk 0:03:02.1]} 6... c5 {[%clk 0:02:54.8]}
7. O-O {[%clk 0:03:00.6]} 7... cxd4 {[%clk 0:02:50.6]} 8. Nxd4 {[%clk
0:03:01.5]} 8... Nc6 {[%clk 0:02:50.6]} 9. Be3 {[%clk 0:03:00.8]} 9... Bd7
{[%clk 0:02:50.8]} 10. f3 {[%clk 0:02:47.8]} 10... Nxd4 {[%clk 0:02:49.9]} 11.
Bxd4 {[%clk 0:02:47.8]} 11... a5 {[%clk 0:02:50.8]} 12. Kh1 {[%clk 0:02:45.4]}
12... Bc6 {[%clk 0:02:46.5]} 13. Qd2 {[%clk 0:02:44]} 13... Nd7 {[%clk
0:02:41.6]} 14. Bxg7 {[%clk 0:02:41]} 14... Kxg7 {[%clk 0:02:41.5]} 15. f4
{[%clk 0:02:41.4]} 15... Qb6 {[%clk 0:02:37.3]} 16. Rad1 {[%clk 0:02:35.5]}
16... a4 {[%clk 0:02:18.7]} 17. Bg4 {[%clk 0:02:16.6]} 17... Nf6 {[%clk
0:02:15.5]} 18. Bf3 {[%clk 0:02:16.4]} 18... Qc5 {[%clk 0:02:15.5]} 19. Qe2
{[%clk 0:02:10.8]} 19... e5 {[%clk 0:02:05.4]} 20. f5 {[%clk 0:00:47.3]} 20...
Rae8 {[%clk 0:01:32.2]} 21. g4 {[%clk 0:00:42.4]} 21... h6 {[%clk 0:01:19.9]}
22. h4 {[%clk 0:00:40.4]} 22... g5 {[%clk 0:01:19.3]} 23. Kg2 {[%clk 0:00:31.8]}
23... gxh4 {[%clk 0:01:02.4]} 24. Rh1 {[%clk 0:00:29.8]} 24... Nh7 {[%clk
0:01:01.5]} 25. Rxh4 {[%clk 0:00:29.8]} 25... Ng5 {[%clk 0:01:01]} 26. Qd2
{[%clk 0:00:18.4]} 26... f6 {[%clk 0:00:49.4]} 27. Qxd6 {[%clk 0:00:15.7]} 27...
Qe3 {[%clk 0:00:49.7]} 28. Qd3 {[%clk 0:00:13.7]} 28... Qf4 {[%clk 0:00:49.6]}
29. Ne2 {[%clk 0:00:11.2]} 29... Qxe4 {[%clk 0:00:49.6]} 30. Bxe4 {[%clk
0:00:10.9]} 30... Bxe4+ {[%clk 0:00:50.5]} 31. Qxe4 {[%clk 0:00:10.9]} 31...
Nxe4 {[%clk 0:00:51.4]} 32. Rd7+ {[%clk 0:00:10.7]} 32... Rf7 {[%clk 0:00:49.9]}
33. Rxf7+ {[%clk 0:00:11]} 33... Kxf7 {[%clk 0:00:50.8]} 34. Rxh6 {[%clk
0:00:11.6]} 34... Kg7 {[%clk 0:00:51]} 35. Rh1 {[%clk 0:00:11.5]} 35... Rd8
{[%clk 0:00:50.5]} 36. Kf3 {[%clk 0:00:11.8]} 36... Nd2+ {[%clk 0:00:49.1]} 37.
Kf2 {[%clk 0:00:11.7]} 37... Nxc4 {[%clk 0:00:50]} 38. b3 {[%clk 0:00:12.1]}
38... axb3 {[%clk 0:00:46.9]} 39. axb3 {[%clk 0:00:13]} 39... Nd2 {[%clk
0:00:47.3]} 40. Ke3 {[%clk 0:00:12.8]} 40... Nxb3 {[%clk 0:00:46.8]} 41. Rb1
{[%clk 0:00:13.3]} 41... Nc5 {[%clk 0:00:45.8]} 42. Rb5 {[%clk 0:00:13.7]} 42...
Rd3+ {[%clk 0:00:44.1]} 43. Kf2 {[%clk 0:00:13.5]} 43... Rd5 {[%clk 0:00:40.4]}
44. Kg2 {[%clk 0:00:11.4]} 44... Rd2 {[%clk 0:00:33.2]} 45. Kf1 {[%clk
0:00:10.6]} 45... Rc2 {[%clk 0:00:33.2]} 46. Ke1 {[%clk 0:00:10.2]} 46... Kh6
{[%clk 0:00:27.7]} 47. Kd1 {[%clk 0:00:10.3]} 47... Rc4 {[%clk 0:00:27.9]} 48.
Kd2 {[%clk 0:00:10.2]} 48... Kg5 {[%clk 0:00:27.9]} 49. Ng3 {[%clk 0:00:08.3]}
49... Kxg4 {[%clk 0:00:24.4]} 50. Nf1 {[%clk 0:00:08.8]} 50... Kf4 {[%clk
0:00:19.8]} 51. Ne3 {[%clk 0:00:08.3]} 51... Ne4+ {[%clk 0:00:19.8]} 52. Ke2
{[%clk 0:00:06.8]} 52... Nc3+ {[%clk 0:00:13]} 53. Kd3 {[%clk 0:00:04.9]} 53...
Nxb5 {[%clk 0:00:13.9]} 54. Nxc4 {[%clk 0:00:04.5]} 54... Nc7 {[%clk 0:00:12.5]}
55. Nd6 {[%clk 0:00:04.4]} 55... b6 {[%clk 0:00:12.4]} 56. Kc4 {[%clk
0:00:04.4]} 56... e4 {[%clk 0:00:11.9]} 57. Kd4 {[%clk 0:00:04.6]} 57... e3
{[%clk 0:00:11.7]} 58. Kd3 {[%clk 0:00:05.1]} 58... Kf3 {[%clk 0:00:11.7]} 59.
Ne4 {[%clk 0:00:04.5]} 59... Nd5 {[%clk 0:00:11.3]} 60. Nxf6 {[%clk 0:00:00.6]}
60... Nxf6 {[%clk 0:00:11]} 0-1

[Event "*** Titled Tuesday Blitz"]
[Site "Chess.com"]
[Date "2020.12.29"]
[Round "8"]
[White "HackingKid98"]
[Black "Vusatiuk_Vladimir"]
[Result "0-1"]
[WhiteElo "2415"]
[BlackElo "2319"]
[TimeControl "180+1"]
[EndTime "11:29:02 PST"]
[Termination "Vusatiuk_Vladimir won by resignation"]

1. d4 {[%clk 0:03:00.9]} 1... Nf6 {[%clk 0:03:00.1]} 2. Nf3 {[%clk 0:02:59.4]}
2... b6 {[%clk 0:03:00.1]} 3. g3 {[%clk 0:02:59.1]} 3... Bb7 {[%clk 0:03:00.5]}
4. Bg2 {[%clk 0:02:59.3]} 4... e6 {[%clk 0:03:01.1]} 5. O-O {[%clk 0:02:59.1]}
5... Be7 {[%clk 0:03:01.5]} 6. c4 {[%clk 0:02:59]} 6... O-O {[%clk 0:03:00.5]}
7. Nc3 {[%clk 0:02:59]} 7... c5 {[%clk 0:03:00.8]} 8. Bf4 {[%clk 0:02:40.4]}
8... cxd4 {[%clk 0:02:41.8]} 9. Qxd4 {[%clk 0:02:41.3]} 9... d5 {[%clk
0:02:31.1]} 10. cxd5 {[%clk 0:02:39.1]} 10... Nxd5 {[%clk 0:02:32]} 11. Ne5
{[%clk 0:02:36.9]} 11... Nc6 {[%clk 0:01:40.7]} 12. Nxc6 {[%clk 0:02:33.5]}
12... Bxc6 {[%clk 0:01:41.6]} 13. Nxd5 {[%clk 0:02:33.1]} 13... Bxd5 {[%clk
0:01:42.5]} 14. Bxd5 {[%clk 0:02:32.2]} 14... Qxd5 {[%clk 0:01:43.4]} 15. Qxd5
{[%clk 0:02:32]} 15... exd5 {[%clk 0:01:44.3]} 16. Rac1 {[%clk 0:02:28.4]} 16...
Rac8 {[%clk 0:01:43.3]} 17. Rfd1 {[%clk 0:02:27.9]} 17... Bf6 {[%clk 0:01:21]}
18. b3 {[%clk 0:02:19.3]} 18... d4 {[%clk 0:01:20.3]} 19. Rxc8 {[%clk
0:02:11.3]} 19... Rxc8 {[%clk 0:01:21.2]} 20. Rc1 {[%clk 0:02:11.6]} 20... Re8
{[%clk 0:01:02.1]} 21. Rc7 {[%clk 0:02:07.4]} 21... g5 {[%clk 0:00:57]} 22. Bd6
{[%clk 0:01:49.7]} 22... Rxe2 {[%clk 0:00:56.8]} 23. Rxa7 {[%clk 0:01:47.1]}
23... d3 {[%clk 0:00:56]} 24. Bb4 {[%clk 0:01:36.1]} 24... d2 {[%clk 0:00:49.4]}
25. Bxd2 {[%clk 0:01:29.4]} 25... Rxd2 {[%clk 0:00:50.3]} 26. Kg2 {[%clk
0:01:24.6]} 26... Bd4 {[%clk 0:00:50.1]} 27. Kf3 {[%clk 0:01:23.8]} 27... Rxf2+
{[%clk 0:00:48.3]} 28. Kg4 {[%clk 0:01:23.5]} 28... h6 {[%clk 0:00:44.5]} 29. h4
{[%clk 0:01:23.3]} 29... gxh4 {[%clk 0:00:40.6]} 30. Kxh4 {[%clk 0:01:24.2]}
30... Kg7 {[%clk 0:00:40.4]} 31. Ra6 {[%clk 0:01:19]} 31... Rf6 {[%clk
0:00:35.6]} 32. Ra8 {[%clk 0:01:15]} 32... Be5 {[%clk 0:00:22.3]} 33. g4 {[%clk
0:01:07.6]} 33... Rf4 {[%clk 0:00:21.3]} 34. Kh3 {[%clk 0:01:06]} 34... Bd4
{[%clk 0:00:19.5]} 35. Kg3 {[%clk 0:01:04.3]} 35... Re4 {[%clk 0:00:19.9]} 36.
Kf3 {[%clk 0:01:03]} 36... Re3+ {[%clk 0:00:20.3]} 37. Kf4 {[%clk 0:01:03.1]}
37... Re2 {[%clk 0:00:20.9]} 38. b4 {[%clk 0:01:02.4]} 38... Rb2 {[%clk
0:00:20.9]} 39. a3 {[%clk 0:01:00.7]} 39... Rb3 {[%clk 0:00:21.4]} 40. Ke4
{[%clk 0:01:00.3]} 40... Bb2 {[%clk 0:00:21.7]} 41. Kd5 {[%clk 0:00:57.4]} 41...
Bxa3 {[%clk 0:00:21.9]} 42. Kc4 {[%clk 0:00:53.8]} 42... Rxb4+ {[%clk
0:00:21.9]} 43. Kc3 {[%clk 0:00:53.3]} 43... Rxg4 {[%clk 0:00:22]} 44. Rb8
{[%clk 0:00:53.1]} 44... Bc5 {[%clk 0:00:21.6]} 45. Kd3 {[%clk 0:00:52.8]} 45...
h5 {[%clk 0:00:22]} 46. Ke2 {[%clk 0:00:52.4]} 46... Rf4 {[%clk 0:00:22.3]} 47.
Rd8 {[%clk 0:00:49.6]} 47... h4 {[%clk 0:00:21.8]} 48. Rd3 {[%clk 0:00:49.7]}
48... Kf6 {[%clk 0:00:22.1]} 49. Rh3 {[%clk 0:00:48.9]} 49... Kg5 {[%clk
0:00:22.6]} 50. Ke1 {[%clk 0:00:48]} 50... Kg4 {[%clk 0:00:22.7]} 51. Rd3 {[%clk
0:00:47.5]} 51... h3 {[%clk 0:00:23]} 52. Rd8 {[%clk 0:00:47.3]} 52... Kf3
{[%clk 0:00:21.5]} 53. Rh8 {[%clk 0:00:46.3]} 53... Kg2 {[%clk 0:00:19.3]} 54.
Rg8+ {[%clk 0:00:44.9]} 54... Kh1 {[%clk 0:00:19.7]} 55. Rh8 {[%clk 0:00:45.5]}
55... h2 {[%clk 0:00:20.2]} 56. Ke2 {[%clk 0:00:44.9]} 56... Rf2+ {[%clk
0:00:19.8]} 57. Ke1 {[%clk 0:00:43.7]} 57... Rg2 {[%clk 0:00:20.3]} 58. Kf1
{[%clk 0:00:42.8]} 58... Rg1+ {[%clk 0:00:20.8]} 59. Ke2 {[%clk 0:00:42.7]}
59... Rg6 {[%clk 0:00:18.8]} 60. Kf1 {[%clk 0:00:41.4]} 60... b5 {[%clk
0:00:19.2]} 61. Rh5 {[%clk 0:00:39]} 61... Rf6+ {[%clk 0:00:18.1]} 62. Ke2
{[%clk 0:00:38.8]} 62... Rc6 {[%clk 0:00:16.1]} 63. Kf1 {[%clk 0:00:36]} 63...
b4 {[%clk 0:00:15.6]} 64. Rh3 {[%clk 0:00:35.3]} 64... Rf6+ {[%clk 0:00:15.3]}
65. Ke2 {[%clk 0:00:35.6]} 65... Kg2 {[%clk 0:00:15.8]} 0-1

[Event "*** Titled Tuesday Blitz"]
[Site "Chess.com"]
[Date "2020.12.29"]
[Round "8"]
[White "Rud_Makarian"]
[Black "wonderfultime"]
[Result "0-1"]
[WhiteElo "2708"]
[BlackElo "3013"]
[TimeControl "180+1"]
[EndTime "11:29:03 PST"]
[Termination "wonderfultime won on time"]

1. d4 {[%clk 0:03:00.9]} 1... d5 {[%clk 0:02:59.6]} 2. c4 {[%clk 0:02:58.4]}
2... c6 {[%clk 0:02:59.9]} 3. Nf3 {[%clk 0:02:57.5]} 3... Nf6 {[%clk 0:03:00.4]}
4. Nc3 {[%clk 0:02:57.6]} 4... a6 {[%clk 0:03:00.7]} 5. e3 {[%clk 0:02:56.6]}
5... Bf5 {[%clk 0:03:00.5]} 6. Ne5 {[%clk 0:02:54.5]} 6... Nbd7 {[%clk
0:02:48.1]} 7. cxd5 {[%clk 0:02:52]} 7... Nxe5 {[%clk 0:02:47.2]} 8. dxe5 {[%clk
0:02:49]} 8... Nxd5 {[%clk 0:02:47.5]} 9. Qb3 {[%clk 0:02:40.5]} 9... Nxc3
{[%clk 0:02:39.2]} 10. bxc3 {[%clk 0:02:26.4]} 10... b5 {[%clk 0:02:38.5]} 11.
Be2 {[%clk 0:02:26.7]} 11... e6 {[%clk 0:02:37]} 12. O-O {[%clk 0:02:26.2]}
12... Be7 {[%clk 0:02:35.9]} 13. Rd1 {[%clk 0:02:24]} 13... Qc7 {[%clk
0:02:35.9]} 14. f4 {[%clk 0:02:19.8]} 14... O-O {[%clk 0:02:34.7]} 15. Bf3
{[%clk 0:02:11]} 15... Rfd8 {[%clk 0:02:01.3]} 16. e4 {[%clk 0:02:10.4]} 16...
Bg6 {[%clk 0:02:01.8]} 17. Be3 {[%clk 0:02:07.5]} 17... h6 {[%clk 0:02:00.6]}
18. Rxd8+ {[%clk 0:01:52.3]} 18... Rxd8 {[%clk 0:01:59]} 19. Rd1 {[%clk
0:01:53.2]} 19... Rxd1+ {[%clk 0:01:55.1]} 20. Qxd1 {[%clk 0:01:54.1]} 20... Qa5
{[%clk 0:01:55.4]} 21. Qd2 {[%clk 0:01:50]} 21... Qa4 {[%clk 0:01:33.6]} 22. Qd7
{[%clk 0:01:38.9]} 22... Qa3 {[%clk 0:01:29.1]} 23. f5 {[%clk 0:00:24.8]} 23...
Qxc3 {[%clk 0:01:23.5]} 24. Kf2 {[%clk 0:00:20.5]} 24... Qb2+ {[%clk 0:00:49]}
25. Kf1 {[%clk 0:00:20.7]} 25... Qb1+ {[%clk 0:00:34]} 26. Kf2 {[%clk
0:00:19.1]} 26... Qb2+ {[%clk 0:00:12.9]} 27. Bd2 {[%clk 0:00:18.7]} 27... exf5
{[%clk 0:00:06]} 28. exf5 {[%clk 0:00:16.1]} 28... Bc5+ {[%clk 0:00:06.3]} 29.
Kf1 {[%clk 0:00:14.4]} 29... Qb1+ {[%clk 0:00:06]} 30. Ke2 {[%clk 0:00:09.8]}
30... Qxf5 {[%clk 0:00:02.8]} 31. Qxc6 {[%clk 0:00:08.7]} 31... Qxe5+ {[%clk
0:00:02.4]} 32. Kd1 {[%clk 0:00:08.3]} 32... Kh7 {[%clk 0:00:02.9]} 33. a4
{[%clk 0:00:07.4]} 33... Qa1+ {[%clk 0:00:02.3]} 34. Ke2 {[%clk 0:00:07.6]}
34... Qe5+ {[%clk 0:00:02.9]} 35. Kd1 {[%clk 0:00:08]} 35... b4 {[%clk
0:00:03.8]} 36. Qd5 {[%clk 0:00:03.7]} 36... Qa1+ {[%clk 0:00:03.9]} 37. Ke2
{[%clk 0:00:03.9]} 37... Be7 {[%clk 0:00:02.5]} 38. h4 {[%clk 0:00:04.3]} 38...
Qf6 {[%clk 0:00:01.7]} 39. h5 {[%clk 0:00:04.2]} 39... Bf5 {[%clk 0:00:02.2]}
40. g4 {[%clk 0:00:04.1]} 40... Be6 {[%clk 0:00:02.6]} 41. Be4+ {[%clk
0:00:04.6]} 41... Kg8 {[%clk 0:00:02.8]} 42. Qa8+ {[%clk 0:00:04.7]} 42... Bf8
{[%clk 0:00:02.6]} 43. Bxb4 {[%clk 0:00:05.3]} 43... Qb2+ {[%clk 0:00:03.2]} 44.
Bd2 {[%clk 0:00:05.3]} 44... Bc4+ {[%clk 0:00:03.8]} 45. Ke3 {[%clk 0:00:04.6]}
45... Qb6+ {[%clk 0:00:04.2]} 46. Kf3 {[%clk 0:00:04.1]} 46... Qf6+ {[%clk
0:00:04.8]} 47. Bf4 {[%clk 0:00:04.5]} 47... Qc3+ {[%clk 0:00:04.7]} 48. Be3
{[%clk 0:00:05]} 48... Qf6+ {[%clk 0:00:05.3]} 49. Bf4 {[%clk 0:00:05.1]} 49...
Bb3 {[%clk 0:00:05.8]} 50. a5 {[%clk 0:00:04.9]} 50... Bd1+ {[%clk 0:00:05.9]}
51. Ke3 {[%clk 0:00:03.2]} 51... Qc3+ {[%clk 0:00:06.1]} 52. Kf2 {[%clk
0:00:03.1]} 52... Qb2+ {[%clk 0:00:06.6]} 53. Kg3 {[%clk 0:00:03.4]} 53... Qc3+
{[%clk 0:00:07]} 54. Kh4 {[%clk 0:00:02.8]} 54... Qe1+ {[%clk 0:00:06.6]} 55.
Kh3 {[%clk 0:00:03.1]} 55... Qf1+ {[%clk 0:00:06.8]} 56. Kg3 {[%clk 0:00:03.2]}
56... Qg1+ {[%clk 0:00:07.2]} 57. Bg2 {[%clk 0:00:03.8]} 57... Qe1+ {[%clk
0:00:07.3]} 58. Kh2 {[%clk 0:00:03.7]} 58... Qe6 {[%clk 0:00:07.3]} 0-1

[Event "*** Titled Tuesday Blitz"]
[Site "Chess.com"]
[Date "2020.12.29"]
[Round "8"]
[White "Chamal_Gedgafov"]
[Black "BeanScreen"]
[Result "1-0"]
[WhiteElo "2247"]
[BlackElo "2620"]
[TimeControl "180+1"]
[EndTime "11:29:03 PST"]
[Termination "Chamal_Gedgafov won by checkmate"]

1. e4 {[%clk 0:03:00.9]} 1... e5 {[%clk 0:03:00.1]} 2. f4 {[%clk 0:02:59.8]}
2... Nc6 {[%clk 0:03:01]} 3. Nf3 {[%clk 0:02:59.1]} 3... d6 {[%clk 0:03:00.8]}
4. Bb5 {[%clk 0:02:57.7]} 4... Bg4 {[%clk 0:03:00.3]} 5. h3 {[%clk 0:02:56.3]}
5... Bxf3 {[%clk 0:02:56.8]} 6. Bxc6+ {[%clk 0:02:55.6]} 6... bxc6 {[%clk
0:02:56.6]} 7. Qxf3 {[%clk 0:02:55.8]} 7... exf4 {[%clk 0:02:48]} 8. Qxf4 {[%clk
0:02:53.3]} 8... Nf6 {[%clk 0:02:45.4]} 9. O-O {[%clk 0:02:51.4]} 9... Be7
{[%clk 0:02:45.2]} 10. Nc3 {[%clk 0:02:50.5]} 10... c5 {[%clk 0:02:45.1]} 11. b3
{[%clk 0:02:43.7]} 11... O-O {[%clk 0:02:44.1]} 12. Bb2 {[%clk 0:02:42.1]} 12...
Re8 {[%clk 0:02:35.8]} 13. d3 {[%clk 0:02:41]} 13... Qd7 {[%clk 0:02:30.9]} 14.
Nd5 {[%clk 0:02:29.8]} 14... c6 {[%clk 0:02:08.3]} 15. Nxe7+ {[%clk 0:02:11]}
15... Rxe7 {[%clk 0:02:08.5]} 16. Bxf6 {[%clk 0:02:03.5]} 16... gxf6 {[%clk
0:02:09.4]} 17. Qxf6 {[%clk 0:02:02.7]} 17... Re6 {[%clk 0:02:09.8]} 18. Qf5
{[%clk 0:02:01.8]} 18... Qe7 {[%clk 0:02:08.5]} 19. Rf4 {[%clk 0:01:55.1]} 19...
Rg6 {[%clk 0:02:03.2]} 20. Raf1 {[%clk 0:01:52.3]} 20... Rf8 {[%clk 0:02:01.2]}
21. h4 {[%clk 0:01:47.4]} 21... Kh8 {[%clk 0:01:59.4]} 22. h5 {[%clk 0:01:36.9]}
22... Rg5 {[%clk 0:01:58.3]} 23. Qf6+ {[%clk 0:01:36.5]} 23... Qxf6 {[%clk
0:01:58.5]} 24. Rxf6 {[%clk 0:01:35.6]} 24... Kg8 {[%clk 0:01:50.5]} 25. h6
{[%clk 0:01:34.8]} 25... Rg6 {[%clk 0:01:50.4]} 26. R1f5 {[%clk 0:01:21.6]}
26... a5 {[%clk 0:01:42.8]} 27. a4 {[%clk 0:01:20.1]} 27... Rxf6 {[%clk
0:01:35.3]} 28. Rxf6 {[%clk 0:01:19.5]} 28... Rd8 {[%clk 0:01:36.2]} 29. Kf2
{[%clk 0:01:10.4]} 29... Kf8 {[%clk 0:01:36.5]} 30. Ke3 {[%clk 0:01:05.7]} 30...
Ke7 {[%clk 0:01:36.7]} 31. e5 {[%clk 0:01:05.4]} 31... Rg8 {[%clk 0:01:27.8]}
32. Kf3 {[%clk 0:01:00.1]} 32... dxe5 {[%clk 0:00:41.7]} 33. Rxc6 {[%clk
0:00:58.3]} 33... Rg5 {[%clk 0:00:32]} 34. g4 {[%clk 0:00:54.1]} 34... Kd7
{[%clk 0:00:29.7]} 35. Ra6 {[%clk 0:00:52.5]} 35... Ke7 {[%clk 0:00:26.8]} 36.
Rxa5 {[%clk 0:00:48.8]} 36... Kd6 {[%clk 0:00:22.7]} 37. Ra6+ {[%clk 0:00:47.7]}
37... Ke7 {[%clk 0:00:19.2]} 38. Rb6 {[%clk 0:00:42.3]} 38... Kd7 {[%clk
0:00:16.8]} 39. a5 {[%clk 0:00:40.1]} 39... Rg8 {[%clk 0:00:16.8]} 40. a6 {[%clk
0:00:36.3]} 40... Ra8 {[%clk 0:00:16.5]} 41. Rf6 {[%clk 0:00:34.9]} 41... Ke7
{[%clk 0:00:16.7]} 42. g5 {[%clk 0:00:34.8]} 42... Ra7 {[%clk 0:00:15.5]} 43.
Ke4 {[%clk 0:00:33.5]} 43... Rd7 {[%clk 0:00:14.3]} 44. Kxe5 {[%clk 0:00:32.5]}
44... Ra7 {[%clk 0:00:13.9]} 45. Rc6 {[%clk 0:00:30.6]} 45... Kf8 {[%clk
0:00:12.2]} 46. Kf6 {[%clk 0:00:28.4]} 46... Ra8 {[%clk 0:00:12.2]} 47. c3
{[%clk 0:00:25.9]} 47... Kg8 {[%clk 0:00:12.2]} 48. b4 {[%clk 0:00:25.2]} 48...
cxb4 {[%clk 0:00:11.2]} 49. cxb4 {[%clk 0:00:24.3]} 49... Kh8 {[%clk 0:00:12.1]}
50. b5 {[%clk 0:00:23.3]} 50... Rg8 {[%clk 0:00:11.9]} 51. Kf5 {[%clk 0:00:20]}
51... Rd8 {[%clk 0:00:09.2]} 52. a7 {[%clk 0:00:19]} 52... Rd5+ {[%clk
0:00:08.8]} 53. Ke4 {[%clk 0:00:17.8]} 53... Rd8 {[%clk 0:00:08.6]} 54. b6
{[%clk 0:00:17.3]} 54... Re8+ {[%clk 0:00:09]} 55. Kf4 {[%clk 0:00:17]} 55... f6
{[%clk 0:00:08.1]} 56. b7 {[%clk 0:00:15.6]} 56... fxg5+ {[%clk 0:00:08.1]} 57.
Kxg5 {[%clk 0:00:15]} 57... Rg8+ {[%clk 0:00:07.5]} 58. Kh5 {[%clk 0:00:14.5]}
58... Rf8 {[%clk 0:00:03.8]} 59. b8=Q {[%clk 0:00:13.8]} 59... Rg8 {[%clk
0:00:04.1]} 60. a8=Q {[%clk 0:00:12.9]} 60... Rf8 {[%clk 0:00:01.8]} 61. Qxf8#
{[%clk 0:00:11]} 1-0

[Event "*** Titled Tuesday Blitz"]
[Site "Chess.com"]
[Date "2020.12.29"]
[Round "8"]
[White "profofchess"]
[Black "NovikovaGalina"]
[Result "1-0"]
[WhiteElo "2408"]
[BlackElo "2248"]
[TimeControl "180+1"]
[EndTime "11:29:03 PST"]
[Termination "profofchess won by checkmate"]

1. e4 {[%clk 0:03:00.9]} 1... e6 {[%clk 0:03:00.3]} 2. d4 {[%clk 0:03:00.4]}
2... d5 {[%clk 0:03:01.2]} 3. Nc3 {[%clk 0:02:58.3]} 3... Bb4 {[%clk 0:03:01.1]}
4. e5 {[%clk 0:02:58.2]} 4... c5 {[%clk 0:03:01.2]} 5. Bd2 {[%clk 0:02:58.6]}
5... Ne7 {[%clk 0:03:00.9]} 6. a3 {[%clk 0:02:58.2]} 6... Bxc3 {[%clk 0:02:59]}
7. Bxc3 {[%clk 0:02:59.1]} 7... cxd4 {[%clk 0:02:57.8]} 8. Qxd4 {[%clk 0:03:00]}
8... Nbc6 {[%clk 0:02:55.1]} 9. Qg4 {[%clk 0:03:00]} 9... Kf8 {[%clk 0:02:32.8]}
10. Nf3 {[%clk 0:02:55.4]} 10... a6 {[%clk 0:02:24.4]} 11. h4 {[%clk 0:02:49.3]}
11... b5 {[%clk 0:02:23.7]} 12. h5 {[%clk 0:02:47.4]} 12... h6 {[%clk
0:02:24.2]} 13. Bd3 {[%clk 0:02:32.5]} 13... Nf5 {[%clk 0:02:08.4]} 14. O-O-O
{[%clk 0:02:26.1]} 14... Qb6 {[%clk 0:01:54.5]} 15. Rhf1 {[%clk 0:01:45.5]}
15... a5 {[%clk 0:01:53.4]} 16. Bxf5 {[%clk 0:01:00.2]} 16... exf5 {[%clk
0:01:54.3]} 17. Qf4 {[%clk 0:00:57.6]} 17... b4 {[%clk 0:01:33.4]} 18. Bd4
{[%clk 0:00:57.1]} 18... Nxd4 {[%clk 0:01:28.8]} 19. Qxd4 {[%clk 0:00:40.9]}
19... Qxd4 {[%clk 0:01:23.3]} 20. Nxd4 {[%clk 0:00:41.3]} 20... bxa3 {[%clk
0:01:23.8]} 21. bxa3 {[%clk 0:00:39.7]} 21... Be6 {[%clk 0:01:22.7]} 22. Kd2
{[%clk 0:00:37.9]} 22... Kg8 {[%clk 0:00:54.4]} 23. Rb1 {[%clk 0:00:37.8]} 23...
Kh7 {[%clk 0:00:54.7]} 24. Rb6 {[%clk 0:00:37]} 24... Rhe8 {[%clk 0:00:51.2]}
25. f4 {[%clk 0:00:35.4]} 25... Rac8 {[%clk 0:00:43.6]} 26. Rfb1 {[%clk
0:00:24.2]} 26... Rc4 {[%clk 0:00:43.3]} 27. c3 {[%clk 0:00:11.5]} 27... Rec8
{[%clk 0:00:43.4]} 28. Rc1 {[%clk 0:00:08.8]} 28... Ra4 {[%clk 0:00:40.1]} 29.
Rb3 {[%clk 0:00:07.5]} 29... Rac4 {[%clk 0:00:34.4]} 30. Kd3 {[%clk 0:00:07.2]}
30... R8c5 {[%clk 0:00:18.5]} 31. g3 {[%clk 0:00:07.1]} 31... Bc8 {[%clk
0:00:18.5]} 32. Rb6 {[%clk 0:00:06.6]} 32... Ra4 {[%clk 0:00:17]} 33. Ra1 {[%clk
0:00:03.4]} 33... Rac4 {[%clk 0:00:17]} 34. Rc1 {[%clk 0:00:03.2]} 34... Ra4
{[%clk 0:00:17.5]} 35. Nc2 {[%clk 0:00:03]} 35... Bd7 {[%clk 0:00:09.8]} 36.
Rcb1 {[%clk 0:00:02.8]} 36... Re4 {[%clk 0:00:06.9]} 37. R1b3 {[%clk 0:00:01.5]}
37... Ba4 {[%clk 0:00:06.4]} 38. Rb2 {[%clk 0:00:01.5]} 38... Bxc2+ {[%clk
0:00:04.8]} 39. Rxc2 {[%clk 0:00:01.5]} 39... Ra4 {[%clk 0:00:04.5]} 40. Ra6
{[%clk 0:00:01.7]} 40... Rxa3 {[%clk 0:00:04.6]} 41. Ra7 {[%clk 0:00:02]} 41...
Kg8 {[%clk 0:00:03.9]} 42. Ra8+ {[%clk 0:00:02.5]} 42... Kh7 {[%clk 0:00:04.4]}
43. Ra7 {[%clk 0:00:03.3]} 43... d4 {[%clk 0:00:03.4]} 44. Rxf7 {[%clk
0:00:02.8]} 44... Rcxc3+ {[%clk 0:00:03.4]} 45. Rxc3 {[%clk 0:00:03.1]} 45...
dxc3 {[%clk 0:00:04.3]} 46. e6 {[%clk 0:00:02.7]} 46... Ra2 {[%clk 0:00:03.5]}
47. Kxc3 {[%clk 0:00:02.4]} 47... Re2 {[%clk 0:00:04]} 48. Re7 {[%clk
0:00:02.8]} 48... Kg8 {[%clk 0:00:04.2]} 49. Re8+ {[%clk 0:00:02.8]} 49... Kh7
{[%clk 0:00:04.4]} 50. e7 {[%clk 0:00:03.4]} 50... Re3+ {[%clk 0:00:04.5]} 51.
Kc4 {[%clk 0:00:03.5]} 51... Re1 {[%clk 0:00:04.7]} 52. Kb5 {[%clk 0:00:03.4]}
52... Ra1 {[%clk 0:00:03.6]} 53. Rf8 {[%clk 0:00:02.7]} 53... Rb1+ {[%clk
0:00:03.9]} 54. Ka4 {[%clk 0:00:01.8]} 54... Ra1+ {[%clk 0:00:04.4]} 55. Kb5
{[%clk 0:00:01.8]} 55... Rb1+ {[%clk 0:00:05.3]} 56. Kxa5 {[%clk 0:00:01.8]}
56... Ra1+ {[%clk 0:00:06.2]} 57. Kb4 {[%clk 0:00:02.1]} 57... Rb1+ {[%clk
0:00:07.1]} 58. Kc3 {[%clk 0:00:02.6]} 58... Rc1+ {[%clk 0:00:07.6]} 59. Kb2
{[%clk 0:00:02.8]} 59... Re1 {[%clk 0:00:07.5]} 60. e8=Q {[%clk 0:00:02.7]}
60... Rg1 {[%clk 0:00:07.4]} 61. Qg6# {[%clk 0:00:02.4]} 1-0